[Event "Titled Tuesday Blitz July 11 Late 2023"]
[White "Morefield, Jason"]
[Black "Ncatt"]
[WhiteFideId "30920825"]
[WhiteElo "2788"]
[BlackElo "2406"]
[Result "0-1"]
[Round "2"]
[TimeControl "180+2"]
[Date "2023.07.11"]
[WhiteClock "0:00:00"]
[BlackClock "0:00:11"]
[Board "112"]

1. e4 {[%clk 0:02:55]}  c5 {[%clk 0:02:57]} 2. Nf3 {[%clk 0:02:55]}  Nc6 {[%clk 0:02:57]} 3. Bb5 {[%clk 0:02:56]}  g6 {[%clk 0:02:57]} 4. Bxc6 {[%clk 0:02:56]}  bxc6 {[%clk 0:02:57]} 5. O-O {[%clk 0:02:56]}  Bg7 {[%clk 0:02:57]} 6. Re1 {[%clk 0:02:57]}  Nf6 {[%clk 0:02:53]} 7. e5 {[%clk 0:02:57]}  Nd5 {[%clk 0:02:53]} 8. Nc3 {[%clk 0:02:52]}  Nc7 {[%clk 0:02:53]} 9. Ne4 {[%clk 0:02:51]}  Ne6 {[%clk 0:02:52]} 10. h4 {[%clk 0:02:47]}  O-O {[%clk 0:02:44]} 11. d3 {[%clk 0:02:41]}  d5 {[%clk 0:02:41]} 12. Ng3 {[%clk 0:02:37]}  Rb8 {[%clk 0:02:33]} 13. h5 {[%clk 0:02:34]}  Ba6 {[%clk 0:02:25]} 14. Nh2 {[%clk 0:02:16]}  c4 {[%clk 0:02:20]} 15. dxc4 {[%clk 0:02:09]}  dxc4 {[%clk 0:02:13]} 16. Qg4 {[%clk 0:02:05]}  Qd7 {[%clk 0:02:00]} 17. Qh3 {[%clk 0:01:55]}  Rfd8 {[%clk 0:01:55]} 18. Ng4 {[%clk 0:01:52]}  Nd4 {[%clk 0:01:48]} 19. hxg6 {[%clk 0:01:45]}  fxg6 {[%clk 0:01:43]} 20. e6 {[%clk 0:01:25]}  Qd5 {[%clk 0:01:33]} 21. Bh6 {[%clk 0:00:50]}  Nxc2 {[%clk 0:01:26]} 22. Bxg7 {[%clk 0:00:50]}  Nxe1 {[%clk 0:01:15]} 23. Bc3 {[%clk 0:00:43]}  Nc2 {[%clk 0:00:57]} 24. Qh6 {[%clk 0:00:40]}  Nd4 {[%clk 0:00:57]} 25. Re1 {[%clk 0:00:20]}  Rb5 {[%clk 0:00:37]} 26. Ne4 {[%clk 0:00:15]}  Qf5 {[%clk 0:00:33]} 27. f3 {[%clk 0:00:12]}  Nxe6 {[%clk 0:00:31]} 28. Nef6+ {[%clk 0:00:08]}  exf6 {[%clk 0:00:31]} 29. Nxf6+ {[%clk 0:00:09]}  Kf7 {[%clk 0:00:27]} 30. Qxh7+ {[%clk 0:00:07]}  Ng7 {[%clk 0:00:26]} 31. Ne8 {[%clk 0:00:04]}  Qc5+ {[%clk 0:00:22]} 32. Kf1 {[%clk 0:00:03]}  Qf8 {[%clk 0:00:19]} 33. Nxg7 {[%clk 0:00:02]}  Qg8 {[%clk 0:00:15]} 34. Qh3 {[%clk 0:00:02]}  Rd6 {[%clk 0:00:11]} 35. Nf5 {[%clk 0:00:02]}  Rxf5 {[%clk 0:00:11]} 36. Qxf5+ {[%clk 0:00:00]}  gxf5 {[%clk 0:00:11]} 0-1


[Site "https://www.chess.com"]

[Event "Titled Tuesday Blitz July 11 Late 2023"]
[White "Balla, Tamas-Kristof"]
[Black "Khanin, Semen"]
[WhiteFideId "1208497"]
[BlackFideId "4111990"]
[WhiteElo "2404"]
[BlackElo "2765"]
[Result "0-1"]
[Round "2"]
[TimeControl "180+2"]
[Date "2023.07.11"]
[WhiteClock "0:00:25"]
[BlackClock "0:01:41"]
[Board "113"]

1. e4 {[%clk 0:03:00]}  c5 {[%clk 0:02:56]} 2. c3 {[%clk 0:03:00]}  Nf6 {[%clk 0:02:55]} 3. e5 {[%clk 0:03:00]}  Nd5 {[%clk 0:02:55]} 4. d4 {[%clk 0:03:01]}  cxd4 {[%clk 0:02:52]} 5. Nf3 {[%clk 0:03:01]}  d6 {[%clk 0:02:50]} 6. cxd4 {[%clk 0:03:01]}  Nc6 {[%clk 0:02:46]} 7. Bc4 {[%clk 0:03:01]}  dxe5 {[%clk 0:02:42]} 8. dxe5 {[%clk 0:02:58]}  Nb6 {[%clk 0:02:42]} 9. Qxd8+ {[%clk 0:02:50]}  Nxd8 {[%clk 0:02:42]} 10. Bb3 {[%clk 0:02:47]}  g6 {[%clk 0:02:41]} 11. O-O {[%clk 0:02:47]}  Bg7 {[%clk 0:02:41]} 12. Nc3 {[%clk 0:02:46]}  Nc6 {[%clk 0:02:36]} 13. Bf4 {[%clk 0:02:41]}  Bg4 {[%clk 0:02:32]} 14. Ng5 {[%clk 0:02:19]}  O-O {[%clk 0:02:27]} 15. Rfe1 {[%clk 0:02:03]}  Nd4 {[%clk 0:02:24]} 16. Bd1 {[%clk 0:01:53]}  Bf5 {[%clk 0:02:09]} 17. Rc1 {[%clk 0:01:49]}  Rac8 {[%clk 0:02:06]} 18. Nf3 {[%clk 0:01:49]}  Ne6 {[%clk 0:02:02]} 19. Bg3 {[%clk 0:01:47]}  Nc5 {[%clk 0:02:01]} 20. Bc2 {[%clk 0:01:41]}  Bxc2 {[%clk 0:01:58]} 21. Rxc2 {[%clk 0:01:41]}  Rfd8 {[%clk 0:01:58]} 22. h3 {[%clk 0:01:36]}  Nd3 {[%clk 0:01:57]} 23. Rd1 {[%clk 0:01:23]}  Nc4 {[%clk 0:01:55]} 24. Nb5 {[%clk 0:00:29]}  Ncxb2 {[%clk 0:01:42]} 25. Rb1 {[%clk 0:00:25]}  Rxc2 {[%clk 0:01:41]} 0-1


[Site "https://www.chess.com"]

[Event "Titled Tuesday Blitz July 11 Late 2023"]
[White "Goltsev, Dmitry"]
[Black "Prieto Aranguren, Alain"]
[WhiteFideId "24176710"]
[BlackFideId "2268906"]
[WhiteElo "2763"]
[BlackElo "2404"]
[Result "1-0"]
[Round "2"]
[TimeControl "180+2"]
[Date "2023.07.11"]
[WhiteClock "0:01:06"]
[BlackClock "0:00:16"]
[Board "114"]

1. e3 {[%clk 0:03:00]}  e5 {[%clk 0:02:58]} 2. Bd3 {[%clk 0:02:59]}  d5 {[%clk 0:02:55]} 3. c3 {[%clk 0:02:59]}  Nc6 {[%clk 0:02:54]} 4. Bc2 {[%clk 0:02:57]}  Nf6 {[%clk 0:02:53]} 5. d4 {[%clk 0:02:57]}  exd4 {[%clk 0:02:50]} 6. exd4 {[%clk 0:02:57]}  Bd6 {[%clk 0:02:50]} 7. Nf3 {[%clk 0:02:56]}  O-O {[%clk 0:02:50]} 8. O-O {[%clk 0:02:55]}  Bg4 {[%clk 0:02:47]} 9. Bg5 {[%clk 0:02:54]}  h6 {[%clk 0:02:43]} 10. Bh4 {[%clk 0:02:54]}  Re8 {[%clk 0:02:38]} 11. Qd3 {[%clk 0:02:47]}  g6 {[%clk 0:02:22]} 12. Ba4 {[%clk 0:02:23]}  Bf5 {[%clk 0:02:13]} 13. Qd1 {[%clk 0:02:18]}  Be7 {[%clk 0:01:58]} 14. Ne5 {[%clk 0:02:15]}  Qd6 {[%clk 0:01:49]} 15. Bg3 {[%clk 0:02:12]}  Qe6 {[%clk 0:01:08]} 16. Re1 {[%clk 0:02:09]}  Ne4 {[%clk 0:01:08]} 17. f3 {[%clk 0:02:02]}  Nxe5 {[%clk 0:01:03]} 18. fxe4 {[%clk 0:01:59]}  Bg4 {[%clk 0:00:55]} 19. Qd2 {[%clk 0:01:50]}  Nc4 {[%clk 0:00:54]} 20. Qxh6 {[%clk 0:01:49]}  c6 {[%clk 0:00:52]} 21. Nd2 {[%clk 0:01:36]}  Nxb2 {[%clk 0:00:48]} 22. exd5 {[%clk 0:01:32]}  Qxd5 {[%clk 0:00:42]} 23. Bb3 {[%clk 0:01:31]}  Qg5 {[%clk 0:00:38]} 24. Bxf7+ {[%clk 0:01:23]}  Kxf7 {[%clk 0:00:36]} 25. Qh7+ {[%clk 0:01:23]}  Kf8 {[%clk 0:00:31]} 26. Rf1+ {[%clk 0:01:18]}  Bf5 {[%clk 0:00:31]} 27. Ne4 {[%clk 0:01:10]}  Qe3+ {[%clk 0:00:32]} 28. Kh1 {[%clk 0:01:08]}  Qxe4 {[%clk 0:00:32]} 29. Be5 {[%clk 0:01:07]}  Qxe5 {[%clk 0:00:20]} 30. dxe5 {[%clk 0:01:08]}  Bg5 {[%clk 0:00:19]} 31. Rxf5+ {[%clk 0:01:07]}  gxf5 {[%clk 0:00:19]} 32. Qxf5+ {[%clk 0:01:08]}  Ke7 {[%clk 0:00:19]} 33. Qxg5+ {[%clk 0:01:08]}  Kd7 {[%clk 0:00:20]} 34. Rb1 {[%clk 0:01:07]}  Nc4 {[%clk 0:00:20]} 35. Rxb7+ {[%clk 0:01:06]}  Kc8 {[%clk 0:00:16]} 36. Qg7 {[%clk 0:01:06]} 1-0


[Site "https://www.chess.com"]

[Event "Titled Tuesday Blitz July 11 Late 2023"]
[White "Priasmoro, Novendra"]
[Black "Toktomushev, Teimur"]
[WhiteFideId "7105029"]
[BlackFideId "14176726"]
[WhiteElo "2753"]
[BlackElo "2396"]
[Result "1-0"]
[Round "2"]
[TimeControl "180+2"]
[Date "2023.07.11"]
[WhiteClock "0:01:00"]
[BlackClock "0:00:00"]
[Board "116"]

1. e4 {[%clk 0:02:48]}  c5 {[%clk 0:02:59]} 2. Nf3 {[%clk 0:02:43]}  e6 {[%clk 0:03:00]} 3. d4 {[%clk 0:02:43]}  cxd4 {[%clk 0:03:01]} 4. Nxd4 {[%clk 0:02:44]}  a6 {[%clk 0:03:01]} 5. Bd3 {[%clk 0:02:43]}  Bc5 {[%clk 0:03:00]} 6. Nb3 {[%clk 0:02:44]}  Ba7 {[%clk 0:03:01]} 7. Qe2 {[%clk 0:02:43]}  Ne7 {[%clk 0:03:01]} 8. Be3 {[%clk 0:02:44]}  O-O {[%clk 0:03:00]} 9. O-O {[%clk 0:02:42]}  Nbc6 {[%clk 0:02:48]} 10. Nc3 {[%clk 0:02:38]}  b5 {[%clk 0:02:36]} 11. Bxa7 {[%clk 0:02:25]}  Rxa7 {[%clk 0:02:35]} 12. a3 {[%clk 0:02:20]}  Bb7 {[%clk 0:02:16]} 13. Qe3 {[%clk 0:02:10]}  Ba8 {[%clk 0:01:53]} 14. Rad1 {[%clk 0:02:09]}  Rc7 {[%clk 0:01:46]} 15. Nc5 {[%clk 0:02:01]}  Qc8 {[%clk 0:01:24]} 16. Nxa6 {[%clk 0:01:55]}  Qxa6 {[%clk 0:01:17]} 17. Nxb5 {[%clk 0:01:55]}  Rb7 {[%clk 0:00:57]} 18. Nd6 {[%clk 0:01:52]}  Qb6 {[%clk 0:00:56]} 19. Nxb7 {[%clk 0:01:52]}  Qxe3 {[%clk 0:00:55]} 20. fxe3 {[%clk 0:01:52]}  Bxb7 {[%clk 0:00:56]} 21. Bb5 {[%clk 0:01:49]}  Ne5 {[%clk 0:00:25]} 22. Rd4 {[%clk 0:01:47]}  d5 {[%clk 0:00:17]} 23. exd5 {[%clk 0:01:39]}  Bxd5 {[%clk 0:00:15]} 24. e4 {[%clk 0:01:34]}  Ba8 {[%clk 0:00:09]} 25. Rfd1 {[%clk 0:01:25]}  f5 {[%clk 0:00:04]} 26. Rd8 {[%clk 0:01:25]}  Bxe4 {[%clk 0:00:03]} 27. c4 {[%clk 0:01:21]}  N7c6 {[%clk 0:00:02]} 28. R8d6 {[%clk 0:01:13]}  Na5 {[%clk 0:00:03]} 29. Rxe6 {[%clk 0:01:13]}  Nexc4 {[%clk 0:00:02]} 30. b4 {[%clk 0:01:12]}  Nxa3 {[%clk 0:00:03]} 31. Ba6 {[%clk 0:01:02]}  Nc6 {[%clk 0:00:02]} 32. b5 {[%clk 0:01:02]}  Nb4 {[%clk 0:00:01]} 33. Rd7 {[%clk 0:01:01]}  Ra8 {[%clk 0:00:01]} 34. Ree7 {[%clk 0:01:01]}  Nxa6 {[%clk 0:00:01]} 35. Rxg7+ {[%clk 0:01:01]}  Kf8 {[%clk 0:00:02]} 36. bxa6 {[%clk 0:00:59]}  Rxa6 {[%clk 0:00:02]} 37. Rdf7+ {[%clk 0:00:59]}  Ke8 {[%clk 0:00:02]} 38. Rxh7 {[%clk 0:01:00]}  Rd6 {[%clk 0:00:01]} 39. Ra7 {[%clk 0:00:58]}  Rd1+ {[%clk 0:00:01]} 40. Kf2 {[%clk 0:00:59]}  Rd2+ {[%clk 0:00:02]} 41. Ke3 {[%clk 0:00:59]}  Nc4+ {[%clk 0:00:02]} 42. Kf4 {[%clk 0:00:59]}  Rf2+ {[%clk 0:00:02]} 43. Kg5 {[%clk 0:01:00]}  Rxg2+ {[%clk 0:00:00]} 44. Kf6 {[%clk 0:01:00]} 1-0


[Site "https://www.chess.com"]

[Event "Titled Tuesday Blitz July 11 Late 2023"]
[White "dodoucb"]
[Black "Fantastic_Power"]
[WhiteElo "2393"]
[BlackElo "2742"]
[Result "0-1"]
[Round "2"]
[TimeControl "180+2"]
[Date "2023.07.11"]
[WhiteClock "0:00:00"]
[BlackClock "0:01:14"]
[Board "117"]

1. e4 {[%clk 0:02:57]}  Nf6 {[%clk 0:02:58]} 2. e5 {[%clk 0:02:50]}  Nd5 {[%clk 0:02:58]} 3. c4 {[%clk 0:02:50]}  Nb6 {[%clk 0:02:58]} 4. d4 {[%clk 0:02:47]}  d6 {[%clk 0:02:58]} 5. Nf3 {[%clk 0:02:37]}  Bg4 {[%clk 0:02:48]} 6. exd6 {[%clk 0:02:35]}  exd6 {[%clk 0:02:47]} 7. h3 {[%clk 0:02:22]}  Bh5 {[%clk 0:02:46]} 8. Be2 {[%clk 0:02:06]}  Be7 {[%clk 0:02:46]} 9. O-O {[%clk 0:02:00]}  O-O {[%clk 0:02:46]} 10. Be3 {[%clk 0:01:59]}  Nc6 {[%clk 0:02:45]} 11. Nbd2 {[%clk 0:01:57]}  Bf6 {[%clk 0:02:44]} 12. Rc1 {[%clk 0:01:44]}  Re8 {[%clk 0:02:43]} 13. d5 {[%clk 0:01:31]}  Ne7 {[%clk 0:02:12]} 14. Qc2 {[%clk 0:01:00]}  Bg6 {[%clk 0:02:09]} 15. Bd3 {[%clk 0:01:00]}  Bxd3 {[%clk 0:02:08]} 16. Qxd3 {[%clk 0:00:59]}  Bxb2 {[%clk 0:02:08]} 17. Ng5 {[%clk 0:00:33]}  Ng6 {[%clk 0:02:07]} 18. Rb1 {[%clk 0:00:32]}  Bf6 {[%clk 0:02:06]} 19. Nge4 {[%clk 0:00:31]}  Rb8 {[%clk 0:02:01]} 20. a4 {[%clk 0:00:30]}  Nxa4 {[%clk 0:01:47]} 21. Bxa7 {[%clk 0:00:28]}  Ra8 {[%clk 0:01:47]} 22. Be3 {[%clk 0:00:28]}  b6 {[%clk 0:01:45]} 23. Nxf6+ {[%clk 0:00:24]}  Qxf6 {[%clk 0:01:46]} 24. Ne4 {[%clk 0:00:24]}  Qd8 {[%clk 0:01:36]} 25. Bd4 {[%clk 0:00:20]}  Nc5 {[%clk 0:01:35]} 26. Nxc5 {[%clk 0:00:19]}  bxc5 {[%clk 0:01:36]} 27. Bb2 {[%clk 0:00:17]}  Qg5 {[%clk 0:01:34]} 28. Kh1 {[%clk 0:00:12]}  Nf4 {[%clk 0:01:24]} 29. Qg3 {[%clk 0:00:10]}  Qxg3 {[%clk 0:01:22]} 30. fxg3 {[%clk 0:00:11]}  Ne2 {[%clk 0:01:22]} 31. Rf3 {[%clk 0:00:10]}  Rab8 {[%clk 0:01:21]} 32. Rf2 {[%clk 0:00:08]}  Nxg3+ {[%clk 0:01:21]} 33. Kh2 {[%clk 0:00:08]}  Ne4 {[%clk 0:01:22]} 34. Rc2 {[%clk 0:00:06]}  Rb4 {[%clk 0:01:20]} 35. Rbc1 {[%clk 0:00:06]}  Reb8 {[%clk 0:01:19]} 36. Ba3 {[%clk 0:00:07]}  Ra4 {[%clk 0:01:19]} 37. Ra1 {[%clk 0:00:05]}  Rba8 {[%clk 0:01:18]} 38. Rca2 {[%clk 0:00:04]}  h5 {[%clk 0:01:13]} 39. Kg1 {[%clk 0:00:01]}  Nc3 {[%clk 0:01:14]} 40. Re2 {[%clk 0:00:01]}  Nxe2+ {[%clk 0:01:13]} 41. Kf2 {[%clk 0:00:00]}  Rxa3 {[%clk 0:01:14]} 0-1


[Site "https://www.chess.com"]

[Event "Titled Tuesday Blitz July 11 Late 2023"]
[White "Nasuta, Grzegorz"]
[Black "Cooklev, Steven"]
[WhiteFideId "1141686"]
[BlackFideId "2050552"]
[WhiteElo "2740"]
[BlackElo "2391"]
[Result "1-0"]
[Round "2"]
[TimeControl "180+2"]
[Date "2023.07.11"]
[WhiteClock "0:02:08"]
[BlackClock "0:00:52"]
[Board "118"]

1. e4 {[%clk 0:03:00]}  c5 {[%clk 0:02:58]} 2. Nf3 {[%clk 0:03:00]}  Nc6 {[%clk 0:02:59]} 3. Bb5 {[%clk 0:02:59]}  Nf6 {[%clk 0:02:58]} 4. Bxc6 {[%clk 0:02:59]}  dxc6 {[%clk 0:02:58]} 5. d3 {[%clk 0:03:00]}  Bg4 {[%clk 0:02:58]} 6. O-O {[%clk 0:02:56]}  Nd7 {[%clk 0:02:53]} 7. Nbd2 {[%clk 0:02:55]}  e5 {[%clk 0:02:49]} 8. h3 {[%clk 0:02:55]}  Bh5 {[%clk 0:02:49]} 9. Re1 {[%clk 0:02:55]}  Be7 {[%clk 0:02:43]} 10. Nc4 {[%clk 0:02:54]}  f6 {[%clk 0:02:42]} 11. Ne3 {[%clk 0:02:54]}  Nf8 {[%clk 0:02:31]} 12. Nf5 {[%clk 0:02:52]}  Ne6 {[%clk 0:02:31]} 13. Be3 {[%clk 0:02:48]}  O-O {[%clk 0:02:30]} 14. g4 {[%clk 0:02:41]}  Bf7 {[%clk 0:02:25]} 15. c3 {[%clk 0:02:41]}  g6 {[%clk 0:02:10]} 16. Nh6+ {[%clk 0:02:40]}  Kh8 {[%clk 0:02:09]} 17. Nxf7+ {[%clk 0:02:40]}  Rxf7 {[%clk 0:02:09]} 18. Qb3 {[%clk 0:02:40]}  Qd7 {[%clk 0:02:09]} 19. Rad1 {[%clk 0:02:40]}  Raf8 {[%clk 0:01:38]} 20. d4 {[%clk 0:02:35]}  cxd4 {[%clk 0:01:37]} 21. cxd4 {[%clk 0:02:36]}  Nxd4 {[%clk 0:01:33]} 22. Nxd4 {[%clk 0:02:37]}  exd4 {[%clk 0:01:34]} 23. Bxd4 {[%clk 0:02:36]}  Qc8 {[%clk 0:01:25]} 24. Bxa7 {[%clk 0:02:31]}  h5 {[%clk 0:01:19]} 25. f3 {[%clk 0:02:25]}  hxg4 {[%clk 0:01:10]} 26. hxg4 {[%clk 0:02:26]}  Qc7 {[%clk 0:01:06]} 27. Kg2 {[%clk 0:02:09]}  Rh7 {[%clk 0:00:58]} 28. Rh1 {[%clk 0:02:09]}  Rf7 {[%clk 0:00:52]} 29. Qxf7 {[%clk 0:02:08]} 1-0


[Site "https://www.chess.com"]

[Event "Titled Tuesday Blitz July 11 Late 2023"]
[White "Campos, Maria Jose"]
[Black "Volovich, Vasily"]
[WhiteFideId "146803"]
[BlackFideId "34169676"]
[WhiteElo "2387"]
[BlackElo "2709"]
[Result "1-0"]
[Round "2"]
[TimeControl "180+2"]
[Date "2023.07.11"]
[WhiteClock "0:02:15"]
[BlackClock "0:01:09"]
[Board "119"]

1. c4 {[%clk 0:02:56]}  Nf6 {[%clk 0:03:00]} 2. g3 {[%clk 0:02:56]}  e6 {[%clk 0:03:00]} 3. Bg2 {[%clk 0:02:57]}  d5 {[%clk 0:03:00]} 4. Nf3 {[%clk 0:02:57]}  d4 {[%clk 0:02:59]} 5. O-O {[%clk 0:02:55]}  c5 {[%clk 0:03:00]} 6. e3 {[%clk 0:02:50]}  Nc6 {[%clk 0:03:00]} 7. exd4 {[%clk 0:02:50]}  cxd4 {[%clk 0:03:01]} 8. d3 {[%clk 0:02:51]}  Bd6 {[%clk 0:03:00]} 9. Bg5 {[%clk 0:02:51]}  O-O {[%clk 0:02:58]} 10. Nbd2 {[%clk 0:02:51]}  e5 {[%clk 0:02:57]} 11. a3 {[%clk 0:02:50]}  Bf5 {[%clk 0:02:56]} 12. Qc2 {[%clk 0:02:49]}  a5 {[%clk 0:02:56]} 13. Rfe1 {[%clk 0:02:48]}  Re8 {[%clk 0:02:55]} 14. c5 {[%clk 0:02:47]}  Bc7 {[%clk 0:02:48]} 15. Nc4 {[%clk 0:02:45]}  h6 {[%clk 0:02:46]} 16. Bxf6 {[%clk 0:02:44]}  Qxf6 {[%clk 0:02:47]} 17. Nfd2 {[%clk 0:02:44]}  Qg6 {[%clk 0:02:43]} 18. Ne4 {[%clk 0:02:44]}  Bxe4 {[%clk 0:02:24]} 19. Bxe4 {[%clk 0:02:44]}  f5 {[%clk 0:02:24]} 20. Bg2 {[%clk 0:02:39]}  Rad8 {[%clk 0:02:16]} 21. Qb3 {[%clk 0:02:39]}  a4 {[%clk 0:01:53]} 22. Qxb7 {[%clk 0:02:33]}  Ba5 {[%clk 0:01:41]} 23. Qxc6 {[%clk 0:02:28]}  Qxc6 {[%clk 0:01:15]} 24. Bxc6 {[%clk 0:02:27]}  Bxe1 {[%clk 0:01:14]} 25. Bxe8 {[%clk 0:02:27]}  Bxf2+ {[%clk 0:01:14]} 26. Kxf2 {[%clk 0:02:27]}  Rxe8 {[%clk 0:01:14]} 27. c6 {[%clk 0:02:26]}  Re6 {[%clk 0:01:12]} 28. Na5 {[%clk 0:02:17]}  e4 {[%clk 0:01:09]} 29. c7 {[%clk 0:02:15]} 1-0


[Site "https://www.chess.com"]

[Event "Titled Tuesday Blitz July 11 Late 2023"]
[White "Basso, Pier Luigi"]
[Black "EsmeraldasAnderson03"]
[WhiteFideId "866970"]
[WhiteElo "2700"]
[BlackElo "2380"]
[Result "0-1"]
[Round "2"]
[TimeControl "180+2"]
[Date "2023.07.11"]
[WhiteClock "0:00:00"]
[BlackClock "0:00:14"]
[Board "120"]

1. e4 {[%clk 0:02:54]}  c5 {[%clk 0:02:34]} 2. Nf3 {[%clk 0:02:52]}  d6 {[%clk 0:02:33]} 3. d4 {[%clk 0:02:48]}  cxd4 {[%clk 0:02:34]} 4. Qxd4 {[%clk 0:02:48]}  Nc6 {[%clk 0:02:32]} 5. Bb5 {[%clk 0:02:46]}  Bd7 {[%clk 0:02:32]} 6. Bxc6 {[%clk 0:02:46]}  Bxc6 {[%clk 0:02:33]} 7. Nc3 {[%clk 0:02:46]}  Nf6 {[%clk 0:02:34]} 8. Bg5 {[%clk 0:02:45]}  e5 {[%clk 0:02:31]} 9. Qd3 {[%clk 0:02:44]}  Be7 {[%clk 0:02:31]} 10. Bxf6 {[%clk 0:02:43]}  Bxf6 {[%clk 0:02:32]} 11. O-O-O {[%clk 0:02:39]}  Be7 {[%clk 0:02:32]} 12. Nd5 {[%clk 0:02:33]}  Bxd5 {[%clk 0:02:32]} 13. Qxd5 {[%clk 0:02:32]}  Qc7 {[%clk 0:02:31]} 14. Rd3 {[%clk 0:02:32]}  Qc6 {[%clk 0:02:29]} 15. Rhd1 {[%clk 0:02:31]}  Qxd5 {[%clk 0:02:26]} 16. Rxd5 {[%clk 0:02:32]}  Rc8 {[%clk 0:02:25]} 17. c3 {[%clk 0:02:32]}  g6 {[%clk 0:02:24]} 18. Nd2 {[%clk 0:02:31]}  f5 {[%clk 0:02:25]} 19. f3 {[%clk 0:02:30]}  Kf7 {[%clk 0:02:12]} 20. Kc2 {[%clk 0:02:29]}  Ke6 {[%clk 0:02:12]} 21. Rd3 {[%clk 0:02:23]}  fxe4 {[%clk 0:01:43]} 22. Nxe4 {[%clk 0:02:19]}  Rhd8 {[%clk 0:01:42]} 23. Rd5 {[%clk 0:02:19]}  g5 {[%clk 0:01:24]} 24. h3 {[%clk 0:02:18]}  h5 {[%clk 0:01:24]} 25. b3 {[%clk 0:02:17]}  Rg8 {[%clk 0:01:23]} 26. c4 {[%clk 0:02:16]}  g4 {[%clk 0:01:24]} 27. Nxd6 {[%clk 0:02:16]}  Rcf8 {[%clk 0:01:15]} 28. hxg4 {[%clk 0:02:12]}  hxg4 {[%clk 0:01:16]} 29. Nxb7 {[%clk 0:01:55]}  gxf3 {[%clk 0:01:14]} 30. gxf3 {[%clk 0:01:56]}  Rxf3 {[%clk 0:01:11]} 31. Nc5+ {[%clk 0:01:56]}  Bxc5 {[%clk 0:01:12]} 32. Rxc5 {[%clk 0:01:57]}  Rg2+ {[%clk 0:01:11]} 33. Rd2 {[%clk 0:01:56]}  Rxd2+ {[%clk 0:01:11]} 34. Kxd2 {[%clk 0:01:57]}  Rf2+ {[%clk 0:01:12]} 35. Kd3 {[%clk 0:01:57]}  Rxa2 {[%clk 0:01:13]} 36. Rc6+ {[%clk 0:01:55]}  Kf5 {[%clk 0:01:12]} 37. Rc8 {[%clk 0:01:54]}  Rb2 {[%clk 0:01:07]} 38. Kc3 {[%clk 0:01:54]}  Rb1 {[%clk 0:00:57]} 39. Re8 {[%clk 0:01:53]}  e4 {[%clk 0:00:47]} 40. c5 {[%clk 0:01:52]}  Kf4 {[%clk 0:00:45]} 41. Kc2 {[%clk 0:01:50]}  Rh1 {[%clk 0:00:45]} 42. b4 {[%clk 0:01:42]}  a6 {[%clk 0:00:39]} 43. Kc3 {[%clk 0:01:40]}  e3 {[%clk 0:00:37]} 44. Re6 {[%clk 0:01:35]}  Rc1+ {[%clk 0:00:16]} 45. Kb2 {[%clk 0:01:35]}  Rc4 {[%clk 0:00:16]} 46. Kb3 {[%clk 0:01:33]}  Re4 {[%clk 0:00:17]} 47. Rf6+ {[%clk 0:01:30]}  Ke5 {[%clk 0:00:16]} 48. Rf1 {[%clk 0:01:30]}  e2 {[%clk 0:00:17]} 49. Re1 {[%clk 0:01:30]}  Kd5 {[%clk 0:00:15]} 50. Kc3 {[%clk 0:01:30]}  a5 {[%clk 0:00:14]} 51. bxa5 {[%clk 0:01:28]}  Kxc5 {[%clk 0:00:15]} 52. Kd3 {[%clk 0:01:27]}  Re8 {[%clk 0:00:15]} 53. Kd2 {[%clk 0:01:25]}  Kb5 {[%clk 0:00:15]} 54. Rb1+ {[%clk 0:01:21]}  Kxa5 {[%clk 0:00:15]} 55. Ke1 {[%clk 0:01:20]}  Re7 {[%clk 0:00:14]} 56. Rb2 {[%clk 0:00:00]}  Ka4 {[%clk 0:00:14]} 0-1


[Site "https://www.chess.com"]

[Event "Titled Tuesday Blitz July 11 Late 2023"]
[White "Pulpan, Jakub"]
[Black "micke12a"]
[WhiteFideId "302759"]
[WhiteElo "2684"]
[BlackElo "2378"]
[Result "0-1"]
[Round "2"]
[TimeControl "180+2"]
[Date "2023.07.11"]
[WhiteClock "0:01:43"]
[BlackClock "0:00:34"]
[Board "121"]

1. c4 {[%clk 0:02:53]}  Nf6 {[%clk 0:02:59]} 2. Nc3 {[%clk 0:02:53]}  Nc6 {[%clk 0:02:59]} 3. d4 {[%clk 0:02:52]}  d5 {[%clk 0:02:59]} 4. cxd5 {[%clk 0:02:52]}  Nxd5 {[%clk 0:02:59]} 5. e4 {[%clk 0:02:53]}  Nxc3 {[%clk 0:02:59]} 6. bxc3 {[%clk 0:02:54]}  e5 {[%clk 0:02:56]} 7. d5 {[%clk 0:02:53]}  Ne7 {[%clk 0:02:56]} 8. Nf3 {[%clk 0:02:51]}  Ng6 {[%clk 0:02:56]} 9. Bb5+ {[%clk 0:02:50]}  Bd7 {[%clk 0:02:56]} 10. Rb1 {[%clk 0:02:51]}  b6 {[%clk 0:02:46]} 11. Bg5 {[%clk 0:02:43]}  f6 {[%clk 0:02:45]} 12. Bxd7+ {[%clk 0:02:43]}  Qxd7 {[%clk 0:02:45]} 13. Be3 {[%clk 0:02:43]}  Bd6 {[%clk 0:02:39]} 14. Nd2 {[%clk 0:02:44]}  c6 {[%clk 0:02:38]} 15. Nc4 {[%clk 0:02:43]}  Be7 {[%clk 0:02:23]} 16. Qb3 {[%clk 0:02:24]}  cxd5 {[%clk 0:02:18]} 17. exd5 {[%clk 0:02:25]}  Qxd5 {[%clk 0:02:15]} 18. O-O {[%clk 0:02:23]}  O-O {[%clk 0:02:09]} 19. Rfd1 {[%clk 0:02:23]}  Qe6 {[%clk 0:02:08]} 20. Qa4 {[%clk 0:02:19]}  Rac8 {[%clk 0:02:04]} 21. Nd2 {[%clk 0:02:15]}  Rc7 {[%clk 0:02:01]} 22. Nb3 {[%clk 0:02:11]}  Rd8 {[%clk 0:01:54]} 23. Rxd8+ {[%clk 0:02:09]}  Bxd8 {[%clk 0:01:54]} 24. Rd1 {[%clk 0:02:10]}  Be7 {[%clk 0:01:38]} 25. Qe8+ {[%clk 0:02:07]}  Nf8 {[%clk 0:01:39]} 26. Qa4 {[%clk 0:01:54]}  Qc4 {[%clk 0:01:20]} 27. Qe8 {[%clk 0:01:51]}  Qc6 {[%clk 0:01:10]} 28. Qb8 {[%clk 0:01:50]}  Rb7 {[%clk 0:01:03]} 29. Qa8 {[%clk 0:01:48]}  Rd7 {[%clk 0:00:35]} 30. Qxc6 {[%clk 0:01:43]}  Rxd1# {[%clk 0:00:34]} 0-1


[Site "https://www.chess.com"]